{"text_format":"3","workbook":"xlsx","n_sheets":2,"sheets":["Daftar Guru"," Data Daftar"],"not_rendered":{"defined_names":6},"read":"whole","date_system":"1900"}

{"sheet":"Daftar Guru","index":0,"n_rows":10,"n_cols":10,"rows_kept":10,"merged":[[0,1,0,2],[0,4,0,8],[2,9,6,9]]}
[null,"Daftar Guru",null,"Data Daftar","Warna Legenda untuk Status terletak di sel ini: Belum dimulai menggunakan gaya normal, Dalam Proses menggunakan R=91 G=133 B=49, Dikumpulkan Hari Ini menggunakan R=118 G=88 B=0, Ditunda menggunakan R=109 G=66 B=111, Selesai menggunakan Coretan, Dibatalkan menggunakan R=191 G=191 B=191, dan Terlambat menggunakan R=191 G=33 B=28."]
[null,"ITEM","KATEGORI","MULAI","JATUH TEMPO","SISA HARI","STATUS","CATATAN"]
[null,"Membersihkan laci","Kantor",{"$f":"DATE(YEAR(TODAY()),MONTH(TODAY())-1,6)","v":"2018-04-06"},{"$f":"DATE(YEAR(TODAY()),MONTH(TODAY())-1,16)","v":"2018-04-16"},{"$f":"IFERROR(IF(COUNT(Daftar[[#This Row],[MULAI]]:Daftar[[#This Row],[JATUH TEMPO]])<>2,\"\",IF(OR(Daftar[[#This Row],[STATUS]]=\"Selesai\",Daftar[[#This Row],[STATUS]]=\"Dibatalkan\",Daftar[[#This Row],[STATUS]]=\"Ditunda\"),\"\",Daftar[[#This Row],[JATUH TEMPO]]-TODAY())),\"\")","v":""},"Selesai",null,null,"Pemotong status terletak di sel ini. Untuk memfilter daftar menurut Status, pilih salah satu status dari pemotong. Tekan dan tahan CTRL untuk memilih beberapa opsi."]
[null,"Memesan stiker","Perlengkapan",{"$f":"DATE(YEAR(TODAY()),MONTH(TODAY())-1,11)","v":"2018-04-11"},{"$f":"DATE(YEAR(TODAY()),MONTH(TODAY())-1,21)","v":"2018-04-21"},{"$f":"IFERROR(IF(COUNT(Daftar[[#This Row],[MULAI]]:Daftar[[#This Row],[JATUH TEMPO]])<>2,\"\",IF(OR(Daftar[[#This Row],[STATUS]]=\"Selesai\",Daftar[[#This Row],[STATUS]]=\"Dibatalkan\",Daftar[[#This Row],[STATUS]]=\"Ditunda\"),\"\",Daftar[[#This Row],[JATUH TEMPO]]-TODAY())),\"\")","v":""},"Selesai"]
[null,"Mengepel dan menggosok lantai","Lainnya",{"$f":"DATE(YEAR(TODAY()),MONTH(TODAY()-1),DAY(TODAY())-25)","v":"2018-04-14"},{"$f":"DATE(YEAR(TODAY()),MONTH(TODAY())-1,26)","v":"2018-04-26"},{"$f":"IFERROR(IF(COUNT(Daftar[[#This Row],[MULAI]]:Daftar[[#This Row],[JATUH TEMPO]])<>2,\"\",IF(OR(Daftar[[#This Row],[STATUS]]=\"Selesai\",Daftar[[#This Row],[STATUS]]=\"Dibatalkan\",Daftar[[#This Row],[STATUS]]=\"Ditunda\"),\"\",Daftar[[#This Row],[JATUH TEMPO]]-TODAY())),\"\")","v":""},"Selesai"]
[null,"Memberi nama label yang dibuat","Perlengkapan",{"$f":"DATE(YEAR(TODAY()),MONTH(TODAY())-1,21)","v":"2018-04-21"},{"$f":"DATE(YEAR(TODAY()),MONTH(TODAY())-1,1)","v":"2018-04-01"},{"$f":"IFERROR(IF(COUNT(Daftar[[#This Row],[MULAI]]:Daftar[[#This Row],[JATUH TEMPO]])<>2,\"\",IF(OR(Daftar[[#This Row],[STATUS]]=\"Selesai\",Daftar[[#This Row],[STATUS]]=\"Dibatalkan\",Daftar[[#This Row],[STATUS]]=\"Ditunda\"),\"\",Daftar[[#This Row],[JATUH TEMPO]]-TODAY())),\"\")","v":""},"Ditunda"]
[null,"Menilai laporan tertulis triwulanan","Penilaian",{"$f":"DATE(YEAR(TODAY()),MONTH(TODAY())-1,26)","v":"2018-04-26"},{"$f":"TODAY()-5","v":"2018-05-04"},{"$f":"IFERROR(IF(COUNT(Daftar[[#This Row],[MULAI]]:Daftar[[#This Row],[JATUH TEMPO]])<>2,\"\",IF(OR(Daftar[[#This Row],[STATUS]]=\"Selesai\",Daftar[[#This Row],[STATUS]]=\"Dibatalkan\",Daftar[[#This Row],[STATUS]]=\"Ditunda\"),\"\",Daftar[[#This Row],[JATUH TEMPO]]-TODAY())),\"\")","v":-5},"Terlambat"]
[null,"Pengingat Email untuk Slip Izin","Panggilan telepon",{"$f":"DATE(YEAR(TODAY()),MONTH(TODAY()),1)","v":"2018-05-01"},{"$f":"TODAY()","v":"2018-05-09"},{"$f":"IFERROR(IF(COUNT(Daftar[[#This Row],[MULAI]]:Daftar[[#This Row],[JATUH TEMPO]])<>2,\"\",IF(OR(Daftar[[#This Row],[STATUS]]=\"Selesai\",Daftar[[#This Row],[STATUS]]=\"Dibatalkan\",Daftar[[#This Row],[STATUS]]=\"Ditunda\"),\"\",Daftar[[#This Row],[JATUH TEMPO]]-TODAY())),\"\")","v":""},"Dibatalkan"]
[null,"Menilai laporan lisan","Kantor",{"$f":"DATE(YEAR(TODAY()),MONTH(TODAY()),7)","v":"2018-05-07"},{"$f":"DATE(YEAR(TODAY()),MONTH(TODAY()),17)","v":"2018-05-17"},{"$f":"IFERROR(IF(COUNT(Daftar[[#This Row],[MULAI]]:Daftar[[#This Row],[JATUH TEMPO]])<>2,\"\",IF(OR(Daftar[[#This Row],[STATUS]]=\"Selesai\",Daftar[[#This Row],[STATUS]]=\"Dibatalkan\",Daftar[[#This Row],[STATUS]]=\"Ditunda\"),\"\",Daftar[[#This Row],[JATUH TEMPO]]-TODAY())),\"\")","v":8},"Dalam Proses"]
[null,"Meruncingkan pensil","Perlengkapan",{"$f":"DATE(YEAR(TODAY()),MONTH(TODAY()),11)","v":"2018-05-11"},{"$f":"DATE(YEAR(TODAY()),MONTH(TODAY()),10)","v":"2018-05-10"},{"$f":"IFERROR(IF(COUNT(Daftar[[#This Row],[MULAI]]:Daftar[[#This Row],[JATUH TEMPO]])<>2,\"\",IF(OR(Daftar[[#This Row],[STATUS]]=\"Selesai\",Daftar[[#This Row],[STATUS]]=\"Dibatalkan\",Daftar[[#This Row],[STATUS]]=\"Ditunda\"),\"\",Daftar[[#This Row],[JATUH TEMPO]]-TODAY())),\"\")","v":1},"Dalam Proses"]

{"sheet":" Data Daftar","index":1,"n_rows":13,"n_cols":3,"rows_kept":13}
[null,"Data Daftar","Daftar Guru"]
[null,"Kategori"]
[null,"Kantor"]
[null,"Perlengkapan"]
[null,"Yang perlu dibeli"]
[null,"Panggilan telepon"]
[null,"Ide baru"]
[null,"Penilaian"]
[null,"Tim"]
[null,"Intervensi"]
[null,"Komputer"]
[null,"Pribadi"]
[null,"Lainnya"]